bitfinex-derivatives/quotes_SOLF0:USTF0_20250904
["timestamp","ask_amount","ask_price","bid_price","bid_amount"]
[1756946619448,7.35,211.18,211.16,4.75]
[1756946619747,11.6095,211.21,211.15,7.17143008]
[1756946620438,4.2591,211.23,211.18,2.42143008]
[1756946621150,4.2593,211.22,211.18,2.42143008]
[1756946621345,7.35,211.21,211.18,2.42143008]
[1756946621545,7.35,211.21,211.18,7.17143008]
[1756946622147,7.77,211.21,211.18,7.17143008]
[1756946623658,4.2593,211.22,211.18,7.17143008]
[1756946623850,7.77,211.21,211.18,7.17143008]
[1756946624052,12.0296,211.21,211.18,7.17143008]
[1756946624252,10.19143008,211.28,211.15,2.42143008]
[1756946625854,4.2598,211.2,211.15,2.42143008]
[1756946626054,7.77,211.19,211.15,7.19143008]
[1756946628157,12.03,211.19,211.15,11.11953303]
[1756946630458,12.03,211.19,211.15,6.34953303]
[1756946630660,12.03,211.19,211.16,4.77]
[1756946631557,7.77,211.18,211.16,4.77]
[1756946632564,7.77,211.18,211.15,6.34953303]
[1756946632758,12.03,211.19,211.16,4.77]
[1756946633254,7.77,211.24,211.12,3.92810295]
[1756946633657,4.2606,211.16,211.12,3.92810295]
[1756946633859,12.0306,211.16,211.13,4.77]
[1756946636056,4.2601,211.18,211.14,4.77]
[1756946636256,7.77,211.2,211.15,3.92810295]
[1756946636562,29.14,211.26,211.15,3.92810295]
[1756946636563,7.77,211.25,211.15,3.92810295]
[1756946636859,7.77,211.25,211.14,8.69810295]
[1756946637657,7.77,211.25,211.15,3.92810295]
[1756946638861,4.2596,211.21,211.15,3.92810295]
[1756946639159,12.0296,211.21,211.15,3.92810295]
[1756946639756,12.0296,211.21,211.16,4.77]
[1756946639961,12.0296,211.21,211.17,4.77]
[1756946640362,7.77,211.2,211.17,4.77]
[1756946640661,7.77,211.28,211.18,4.77]
[1756946642161,4.2594,211.22,211.18,4.77]
[1756946642366,7.77,211.21,211.18,4.77]
[1756946642867,7.77,211.21,211.17,4.77]
[1756946643062,7.77,211.21,211.18,4.77]
[1756946644066,4.2594,211.22,211.16,6.34953303]
[1756946644267,7.77,211.23,211.16,6.34953303]
[1756946644565,7.77,211.23,211.16,2.42143008]
[1756946645868,4.2599,211.19,211.16,2.42143008]
[1756946646067,12.0299,211.19,211.16,2.42143008]
[1756946646269,7.77,211.19,211.16,2.42143008]
[1756946646470,2.42143008,211.25,211.14,3.92810295]
[1756946646672,7.77,211.24,211.11,3.92810295]
[1756946647874,4.2608,211.15,211.11,3.92810295]
[1756946648067,4.2608,211.15,211.12,4.77]
[1756946648766,12.0311,211.13,211.1,6.34953303]
[1756946648965,7.77,211.22,211.11,4.77]
[1756946649163,7.77,211.15,211.11,8.69810295]
[1756946649362,7.77,211.15,211.12,4.77]
[1756946649566,4.2606,211.16,211.12,4.77]
[1756946649972,12.0306,211.16,211.12,4.77]
[1756946650866,12.0306,211.16,211.11,3.92810295]
[1756946651373,7.77,211.15,211.12,4.77]
[1756946654269,4.2606,211.16,211.11,3.92810295]
[1756946654475,11.9301,211.18,211.14,4.76]
[1756946654875,11.9301,211.18,211.13,2.42143008]
[1756946655076,11.9301,211.18,211.14,4.76]
[1756946655572,7.67,211.16,211.13,2.42143008]
[1756946655773,7.67,211.16,211.13,7.18143008]
[1756946657075,4.2604,211.17,211.13,7.18143008]
[1756946657376,7.67,211.15,211.13,2.42143008]
[1756946660078,4.2608,211.15,211.12,3.92810295]
[1756946660479,7.67,211.24,211.12,3.92810295]
[1756946660673,7.67,211.24,211.11,6.34953303]
[1756946660873,7.67,211.24,211.12,3.92810295]
[1756946661169,10.09143008,211.24,211.11,6.34953303]
[1756946661376,4.2608,211.15,211.11,3.92810295]
[1756946661575,11.9308,211.15,211.11,8.68810295]
[1756946662382,4.261,211.14,211.11,8.68810295]
[1756946662577,11.931,211.14,211.11,8.68810295]
[1756946664477,7.67,211.13,211.11,8.68810295]
[1756946664879,7.67,211.13,211.11,4.76]
[1756946666586,4.2612,211.13,211.1,6.34953303]
[1756946666784,7.67,211.12,211.1,6.34953303]
[1756946667175,7.67,211.12,211.1,2.42143008]
[1756946667579,4.2615,211.11,211.1,2.42143008]
[1756946667874,4.2615,211.11,211.08,3.92810295]
[1756946667875,7.67,211.1,211.08,3.92810295]
[1756946668482,7.67,211.14,211.09,3.92810295]
[1756946668682,7.67,211.2,211.09,3.92810295]
[1756946669981,7.67,211.12,211.09,3.92810295]
[1756946672081,15.36143008,211.21,211.08,8.68810295]
[1756946672284,7.67,211.17,211.06,3.92810295]
[1756946672584,7.67,211.17,211.05,11.10953303]
[1756946672787,2.42143008,211.18,211.05,11.10953303]
[1756946673590,4.2617,211.11,211.07,1.55070727]
[1756946673789,4.2617,211.11,211.05,8.68810295]
[1756946673790,11.9317,211.11,211.09,1.55070727]
[1756946674191,11.9317,211.11,211.08,1.55070727]
[1756946674192,7.67,211.1,211.08,1.55070727]
[1756946675489,11.9317,211.11,211.08,6.31070727]
[1756946676485,11.9317,211.11,211.08,4.76]
[1756946676687,7.67,211.1,211.08,6.31070727]
[1756946677787,7.67,211.1,211.08,1.55070727]
[1756946677788,7.67,211.09,211.08,1.55070727]
[1756946677989,7.67,211.09,211.07,1.55070727]
[1756946678694,11.932,211.09,211.07,1.55070727]
[1756946679993,7.67,211.08,211.07,1.55070727]
[1756946680788,1.55070727,211.15,211.02,10.03974321]
[1756946680789,7.67,211.06,211.04,1.55070727]
[1756946680989,7.67,211.12,211.04,1.55070727]
[1756946681594,7.67,211.06,211.04,1.55070727]
[1756946686993,7.67,211.06,211.03,1.55070727]
[1756946687390,4.2625,211.07,211.03,1.55070727]
[1756946687591,7.62,211.06,211.03,1.55070727]
[1756946687791,4.2625,211.07,211.03,1.55070727]
[1756946687992,7.62,211.06,211.03,1.55070727]
[1756946688190,7.62,211.05,211.03,1.55070727]
[1756946688786,4.2626,211.06,211.03,1.55070727]
[1756946688993,7.62,211.05,211.03,1.55070727]
[1756946689197,7.62,211.04,211.03,1.55070727]
[1756946690197,11.8823,211.07,211.04,4.73]
[1756946690693,7.62,211.07,211.05,6.28070727]
[1756946690997,7.62,211.08,211.05,6.28070727]
[1756946691398,4.2619,211.09,211.05,6.28070727]
[1756946691594,7.62,211.08,211.05,6.28070727]
[1756946692300,7.62,211.07,211.05,1.55070727]
[1756946692494,1.55070727,211.12,211.05,1.55070727]
[1756946692700,1.55070727,211.1,211.03,1.55070727]
[1756946692901,7.62,211.09,211.03,1.55070727]
[1756946693797,1.55070727,211.1,211.01,117.61070727]
[1756946693992,4.2628,211.05,211.01,117.61070727]
[1756946694195,7.62,211.07,210.99,4.75283545]
[1756946694393,7.62,211.07,210.99,2.37543977]
[1756946694903,11.8833,211.02,210.99,2.37543977]
[1756946695402,4.2633,211.02,210.99,2.37543977]
[1756946695596,7.62,211.01,210.99,2.37543977]
[1756946696101,4.2633,211.02,210.99,2.37543977]
[1756946696302,7.62,211.01,210.99,2.37543977]
[1756946696802,7.62,211.01,210.99,0.8247325]
[1756946697102,7.62,211.01,210.99,2.37543977]
[1756946698002,7.62,211.01,210.99,0.8247325]
[1756946698300,7.62,211.01,210.99,2.37543977]
[1756946698601,4.2629,211.04,211.0,4.73]
[1756946698800,11.8829,211.04,211.01,1.55070727]
[1756946699797,4.2632,211.03,211.01,1.55070727]
[1756946700399,11.8832,211.03,211.01,1.55070727]
[1756946700795,7.62,211.04,210.97,1.55070727]
[1756946701000,7.62,211.04,210.94,4.73]
[1756946701199,7.62,211.04,210.96,2.37562549]
[1756946702003,4.2642,210.98,210.96,2.37562549]
[1756946702201,7.62,210.97,210.96,2.37562549]
[1756946703303,7.62,210.97,210.94,6.28070727]
[1756946703502,4.2645,210.97,210.94,1.55070727]
[1756946703703,7.62,210.96,210.94,1.55070727]
[1756946704402,7.62,210.96,210.93,116.86503556]
[1756946704601,4.2645,210.97,210.94,1.55070727]
[1756946704804,4.2645,210.97,210.94,6.28070727]
[1756946705204,11.884,210.99,210.94,6.28070727]
[1756946705502,7.62,210.98,210.94,6.28070727]
[1756946707002,11.8842,210.98,210.94,6.28070727]
[1756946708304,7.62,210.97,210.94,6.28070727]
[1756946708506,4.2642,210.98,210.94,1.55070727]
[1756946709010,7.62,210.97,210.94,1.55070727]
[1756946709209,7.62,210.97,210.93,0.82503556]
[1756946709410,7.62,210.97,210.95,1.55070727]
[1756946714013,7.28,210.97,210.95,1.55070727]
[1756946715108,4.2637,211.0,210.95,1.55070727]
[1756946715309,7.28,211.06,210.99,1.55070727]
[1756946715516,8.83070727,211.06,210.99,1.55070727]
[1756946716511,8.83070727,211.06,210.97,1.55070727]
[1756946716710,4.2639,211.0,210.97,1.55070727]
[1756946717008,7.28,210.99,210.97,1.55070727]
[1756946717812,4.2639,211.0,210.97,1.55070727]
[1756946718013,7.28,211.01,210.99,1.55070727]
[1756946723018,4.2633,211.02,210.99,1.55070727]
[1756946723414,7.28,211.01,210.99,1.55070727]
[1756946723614,7.28,211.04,211.01,1.55070727]
[1756946724023,4.2629,211.05,211.01,1.55070727]
[1756946724616,7.28,211.04,211.01,1.55070727]
[1756946725210,7.28,211.03,211.02,1.55070727]
[1756946728120,4.2623,211.07,211.02,1.55070727]
[1756946728322,7.28,211.06,211.05,1.55070727]
[1756946728517,4.2623,211.07,211.02,4.74]
[1756946728722,7.28,211.06,211.05,1.55070727]
[1756946729622,4.2627,211.05,210.99,3.96288508]
[1756946729821,4.2627,211.05,211.02,1.55070727]
[1756946730415,4.2627,211.05,211.01,1.55070727]
[1756946730416,7.28,211.04,211.01,1.55070727]
[1756946730821,4.2627,211.05,211.01,1.55070727]
[1756946731423,7.28,211.04,211.01,1.55070727]
[1756946731616,7.28,211.04,210.99,1.55070727]
[1756946732919,1.55070727,211.07,210.99,1.55070727]
[1756946732920,7.28,211.02,210.99,1.55070727]
[1756946733122,4.2633,211.03,210.99,1.55070727]
[1756946733323,7.28,211.02,210.99,1.55070727]
[1756946733522,4.2633,211.03,210.99,1.55070727]
[1756946733723,7.28,211.01,210.99,1.55070727]
[1756946733922,1.55070727,211.07,210.99,1.55070727]
[1756946734119,7.28,211.04,210.96,1.55070727]
[1756946734324,7.28,210.98,210.96,1.55070727]
[1756946734522,4.264,210.99,210.96,1.55070727]
[1756946735125,7.28,210.98,210.96,1.55070727]
[1756946735522,7.28,210.98,210.94,8.73996033]
[1756946735726,4.264,210.99,210.94,8.73996033]
[1756946735925,7.28,210.98,210.94,4.77]
[1756946736426,4.264,210.99,210.94,4.77]
[1756946736816,7.28,210.98,210.94,4.77]
[1756946737018,4.264,210.99,210.94,4.77]
[1756946737417,7.28,211.02,210.96,2.42575966]
[1756946737628,7.28,211.02,210.97,4.77]
[1756946737829,7.28,211.09,210.97,4.77]
[1756946738427,2.42575966,211.07,210.95,3.96996033]
[1756946738628,2.42575966,211.07,210.94,6.39571999]
[1756946738827,7.28,211.06,210.94,6.39571999]
[1756946739828,11.5441,210.99,210.95,4.77]
[1756946740228,7.28,211.06,210.94,2.42575966]
[1756946740428,7.28,210.98,210.94,7.19575966]
[1756946740635,7.28,211.06,210.94,7.19575966]
[1756946741139,4.2639,211.0,210.94,7.19575966]
[1756946741336,7.28,210.99,210.94,7.19575966]
[1756946741536,7.28,211.06,210.94,7.19575966]
[1756946741739,7.28,211.09,210.95,4.77]
[1756946742036,7.28,211.09,210.95,8.73996033]
[1756946743039,7.58,211.06,210.95,4.77]
[1756946743643,7.58,210.98,210.95,4.77]
[1756946743841,7.58,210.98,210.94,2.42575966]
[1756946744034,4.264,210.99,210.94,7.18575966]
[1756946744234,7.58,210.98,210.94,11.15571999]
[1756946744435,7.58,210.97,210.94,11.15571999]
[1756946745340,7.58,210.97,210.94,7.18575966]
[1756946746235,7.58,210.96,210.93,4.79499589]
[1756946746435,2.42575966,211.04,210.91,11.15571999]
[1756946746641,7.58,211.03,210.91,11.15571999]
[1756946747242,2.42575966,211.04,210.91,11.15571999]
[1756946747842,4.2647,210.95,210.91,11.15571999]
[1756946748134,11.8447,210.95,210.92,4.76]
[1756946748645,11.8451,210.94,210.91,8.72996033]
[1756946748844,11.8451,210.94,210.91,4.76]
[1756946753248,7.58,210.93,210.9,9.5550937]
[1756946753743,7.58,210.93,210.9,4.7950937]
[1756946753944,7.58,210.93,210.9,9.5550937]
[1756946754143,7.58,210.93,210.9,5.58513337]
[1756946754441,7.58,210.93,210.9,9.5550937]
[1756946755144,7.58,210.93,210.9,5.58513337]
[1756946755344,5.30853452,211.07,210.9,0.82513337]
[1756946755545,2.42575966,211.03,210.9,5.58513337]
[1756946755745,7.58,211.02,210.9,5.58513337]
[1756946756840,7.58,210.93,210.9,5.58513337]
[1756946757846,7.58,211.02,210.9,5.58513337]
[1756946758948,4.2652,210.93,210.9,5.58513337]
[1756946759244,11.8452,210.93,210.9,5.58513337]
[1756946760847,4.2648,210.95,210.91,4.76]
[1756946761052,7.58,210.94,210.91,4.76]
[1756946764754,4.2651,210.94,210.91,4.76]
[1756946764955,14.50575966,211.02,210.9,0.82513337]
[1756946764956,7.58,211.01,210.9,0.82513337]
[1756946765453,4.2655,210.92,210.9,0.82513337]
[1756946765660,11.8455,210.92,210.9,0.82513337]
[1756946766055,11.8455,210.92,210.9,5.58513337]
[1756946768562,11.8455,210.92,210.9,0.82513337]
[1756946769257,7.58,210.91,210.88,4.76]
[1756946769662,7.58,210.91,210.87,3.25104958]
[1756946769861,7.58,210.91,210.88,4.76]
[1756946770860,4.2655,210.92,210.87,3.25104958]
[1756946771261,4.2655,210.92,210.88,4.76]
[1756946771563,7.58,210.91,210.88,4.76]
[1756946772661,7.58,210.91,210.87,3.25104958]
[1756946772860,7.58,210.91,210.88,4.77]
[1756946774865,7.83,210.91,210.88,4.77]
[1756946775061,4.2655,210.92,210.88,4.77]
[1756946775262,4.2655,210.92,210.87,7.22990505]
[1756946775263,4.2657,210.91,210.87,7.22990505]
[1756946775465,7.83,210.9,210.87,3.25104958]
[1756946775662,7.83,210.97,210.87,0.82528992]
[1756946775966,7.83,210.94,210.84,6.40461513]
[1756946776867,7.83,210.88,210.84,11.17461513]
[1756946777368,4.2661,210.89,210.84,11.17461513]
[1756946777667,2.42575966,210.95,210.84,11.17461513]
[1756946777668,7.83,210.87,210.84,11.17461513]
[1756946781071,4.2663,210.88,210.84,11.17461513]
[1756946781273,7.83,210.87,210.84,7.19575966]
[1756946782173,7.83,210.86,210.84,4.77]
[1756946782669,7.83,210.86,210.83,4.80418453]
[1756946783069,7.83,210.86,210.84,4.77]
[1756946783370,7.83,210.86,210.83,4.80418453]
[1756946783571,4.2665,210.87,210.83,9.57418453]
[1756946783775,4.2665,210.87,210.83,4.80418453]
[1756946783973,7.83,210.86,210.83,9.57418453]
[1756946784171,7.83,210.86,210.83,4.80418453]
[1756946784371,7.83,210.86,210.83,9.57418453]
[1756946785575,4.2665,210.87,210.83,9.57418453]
[1756946785772,4.2665,210.87,210.83,4.80418453]
[1756946785973,7.83,210.86,210.83,4.80418453]
[1756946786171,4.2665,210.87,210.83,4.80418453]
[1756946786473,2.42575966,210.94,210.82,1.11917599]
[1756946786474,4.2668,210.85,210.82,5.09803146]
[1756946786676,7.83,210.84,210.82,5.09803146]
[1756946787970,106.47146772,210.96,210.82,5.09803146]
[1756946788167,7.83,210.9,210.82,5.09803146]
[1756946788976,4.2668,210.86,210.82,5.09803146]
[1756946789176,7.83,210.94,210.82,5.09803146]
[1756946790979,116.20575966,210.95,210.82,5.09803146]
[1756946790980,7.83,210.86,210.82,5.09803146]
[1756946791178,7.83,210.86,210.82,9.86803146]
[1756946791372,4.2665,210.87,210.82,9.86803146]
[1756946791576,7.83,210.91,210.82,1.11917599]
[1756946792968,7.83,210.86,210.82,5.88917599]
[1756946793568,4.2665,210.87,210.82,5.88917599]
[1756946793768,7.83,210.86,210.82,5.88917599]
[1756946793972,7.83,210.91,210.84,4.77]
[1756946794173,7.83,210.95,210.87,4.77]
[1756946794469,7.83,210.95,210.87,7.19575966]
[1756946794867,7.83,210.92,210.87,7.19575966]
[1756946795072,12.0952,210.93,210.87,2.42575966]
[1756946795567,4.2652,210.93,210.89,1.55346491]
[1756946795770,7.83,210.92,210.89,1.55346491]
[1756946795974,4.2652,210.93,210.89,1.55346491]
[1756946796178,7.83,210.95,210.89,1.55346491]
[1756946796776,9.38346491,210.95,210.84,3.97885547]
[1756946796970,106.47146772,210.96,210.92,1.55346491]
[1756946797870,7.83,210.94,210.92,1.55346491]
[1756946798681,4.2648,210.95,210.92,1.55346491]
[1756946798880,4.2648,210.95,210.89,3.97885547]
[1756946798881,12.0948,210.95,210.94,1.55346491]
[1756946802683,4.2648,210.95,210.9,4.77]
[1756946802981,7.35,210.94,210.93,1.55346491]
[1756946806585,4.2653,210.93,210.91,1.55346491]
[1756946806785,7.35,210.92,210.91,1.55346491]
[1756946807585,4.2653,210.93,210.88,3.98262557]
[1756946807781,7.35,210.92,210.91,1.55346491]
[1756946808880,4.2658,210.91,210.89,1.55346491]
[1756946809082,7.35,210.9,210.89,1.55346491]
[1756946809283,7.35,210.94,210.86,5.53609048]
[1756946809484,7.35,210.94,210.86,1.55346491]
[1756946809682,4.266,210.89,210.86,1.55346491]
[1756946809887,7.35,210.88,210.86,1.55346491]
[1756946810181,4.266,210.89,210.86,1.55346491]
[1756946810680,7.35,210.88,210.86,1.55346491]
[1756946810880,4.2657,210.91,210.86,6.31346491]
[1756946811080,4.2657,210.91,210.82,1.11917599]
[1756946811081,7.35,210.9,210.88,1.55346491]
[1756946811685,4.2657,210.91,210.88,1.55346491]
[1756946811885,7.35,210.9,210.88,1.55346491]
[1756946812290,4.2657,210.91,210.88,1.55346491]
[1756946812487,7.35,210.9,210.88,1.55346491]
[1756946812690,4.2657,210.91,210.88,1.55346491]
[1756946813386,4.2657,210.91,210.85,3.98262557]
[1756946813591,4.2657,210.91,210.88,1.55346491]
[1756946814186,7.35,210.9,210.88,1.55346491]
[1756946814691,4.2657,210.91,210.88,1.55346491]
[1756946815188,7.35,210.9,210.88,1.55346491]
[1756946815692,4.2657,210.91,210.86,1.55346491]
[1756946816592,4.2661,210.89,210.86,1.55346491]
[1756946817292,7.35,210.88,210.86,1.55346491]
[1756946817489,4.2661,210.89,210.86,1.55346491]
[1756946817690,7.35,210.88,210.86,1.55346491]
[1756946818293,4.2661,210.89,210.86,1.55346491]
[1756946818487,7.35,210.88,210.86,1.55346491]
[1756946818689,4.2661,210.89,210.86,1.55346491]
[1756946818889,7.35,210.88,210.86,1.55346491]
[1756946819695,7.35,210.88,210.86,6.31346491]
[1756946819988,7.35,210.95,210.87,4.76]
[1756946820191,106.47146772,210.96,210.9,1.55346491]
[1756946820387,7.35,210.95,210.9,1.55346491]
[1756946820593,106.47146772,210.96,210.9,1.55346491]
[1756946820793,7.35,210.95,210.9,1.55346491]
[1756946821390,4.2651,210.94,210.92,1.55346491]
[1756946821596,11.6151,210.94,210.92,1.55346491]
[1756946821795,7.35,210.93,210.92,1.55346491]
[1756946822296,110.73616772,210.96,210.92,1.55346491]
[1756946822496,7.35,210.95,210.92,1.55346491]
[1756946822796,106.47146772,210.96,210.92,1.55346491]
[1756946823295,7.35,210.95,210.92,1.55346491]
[1756946823892,11.615,210.95,210.92,1.55346491]
[1756946824098,7.35,210.94,210.92,1.55346491]
[1756946824997,4.265,210.95,210.92,1.55346491]
[1756946825196,7.35,210.94,210.92,1.55346491]
[1756946825692,4.2652,210.93,210.9,1.55346491]
[1756946826089,7.35,210.92,210.9,1.55346491]
[1756946826497,4.2652,210.93,210.9,1.55346491]
[1756946826693,7.35,210.92,210.9,1.55346491]
[1756946829294,4.2648,210.95,210.9,1.55346491]
[1756946829493,7.35,210.94,210.9,6.31346491]
[1756946829889,106.47146772,210.96,210.9,6.31346491]
[1756946830093,110.73616772,210.96,210.9,6.31346491]
[1756946830397,7.35,210.95,210.89,1.55346491]
[1756946832000,7.77,210.92,210.89,1.55346491]
[1756946833801,12.0356,210.92,210.89,1.55346491]
[1756946833997,4.2656,210.92,210.89,1.55346491]
[1756946834398,7.77,210.9,210.89,1.55346491]
[1756946834698,1.55346491,210.95,210.87,5.53609048]
[1756946834891,7.77,210.94,210.87,5.53609048]
[1756946835093,7.77,210.94,210.87,1.55346491]
[1756946836000,12.036,210.9,210.87,1.55346491]
[1756946836199,4.266,210.9,210.87,1.55346491]
[1756946836403,12.036,210.9,210.87,1.55346491]
[1756946836796,4.266,210.9,210.87,1.55346491]
[1756946837097,7.77,210.89,210.87,1.55346491]
[1756946841304,12.036,210.9,210.87,6.31346491]
[1756946841502,7.77,210.9,210.89,1.55346491]
[1756946841802,7.77,210.91,210.89,1.55346491]
[1756946843899,4.2655,210.92,210.89,1.55346491]
[1756946844099,7.77,210.91,210.89,1.55346491]
[1756946844799,4.2655,210.92,210.89,1.55346491]
[1756946845201,7.77,210.91,210.89,1.55346491]
[1756946846103,4.2655,210.92,210.89,1.55346491]
[1756946846305,7.77,210.9,210.89,1.55346491]
[1756946847405,4.2658,210.91,210.88,1.55346491]
[1756946847703,7.77,210.9,210.88,1.55346491]
[1756946847898,4.2658,210.91,210.88,1.55346491]
[1756946848094,7.77,210.89,210.87,3.97906376]
[1756946848304,7.77,210.89,210.88,1.55346491]
[1756946850203,7.77,210.91,210.88,6.31346491]
[1756946850900,114.24146772,210.96,210.9,10.29252867]
[1756946851102,7.77,210.95,210.93,1.55346491]
[1756946851302,106.47146772,210.96,210.93,1.55346491]
[1756946851504,7.77,210.95,210.93,1.55346491]
[1756946851910,7.77,211.0,210.93,1.55346491]
[1756946852901,4.2648,210.96,210.93,1.55346491]
[1756946854013,7.77,210.95,210.93,1.55346491]
[1756946854313,4.2648,210.96,210.93,1.55346491]
[1756946854609,7.77,210.94,210.93,1.55346491]
[1756946854810,4.265,210.95,210.92,1.55346491]
[1756946855019,7.77,210.94,210.92,1.55346491]
[1756946856802,4.265,210.95,210.92,1.55346491]
[1756946857419,4.265,210.95,210.9,8.73906376]
[1756946858116,7.77,210.94,210.9,8.73906376]
[1756946858515,4.265,210.95,210.9,8.73906376]
[1756946858915,7.77,210.94,210.9,8.73906376]
[1756946859116,4.2652,210.94,210.9,4.76]
[1756946859317,7.77,210.93,210.9,4.76]
[1756946859620,7.77,210.93,210.89,6.40576517]
[1756946859817,7.77,210.93,210.89,11.16576517]
[1756946860014,4.2652,210.94,210.89,11.16576517]
[1756946860318,7.77,210.93,210.9,4.76]
[1756946860515,7.77,210.93,210.9,8.73906376]
[1756946860822,7.77,210.93,210.91,4.76]
[1756946862420,7.77,210.93,210.9,4.76]
[1756946862723,7.68,210.93,210.9,4.76]
[1756946864222,7.68,210.93,210.9,8.73906376]
[1756946864522,4.2652,210.94,210.9,8.73906376]
[1756946864821,7.68,210.93,210.9,8.73906376]
[1756946865220,4.2654,210.93,210.89,3.97906376]
[1756946865421,7.68,211.01,210.89,3.97906376]
[1756946866625,7.68,210.92,210.89,3.97906376]
[1756946867427,4.2654,210.93,210.89,3.97906376]
[1756946867625,7.68,210.92,210.89,3.97906376]
[1756946867816,4.2654,210.93,210.89,3.97906376]
[1756946868015,7.68,210.92,210.89,3.97906376]
[1756946868324,4.2654,210.93,210.89,3.97906376]
[1756946868916,7.68,210.92,210.89,3.97906376]
[1756946869222,4.2654,210.93,210.89,3.97906376]
[1756946869528,7.68,210.92,210.89,3.97906376]
[1756946869825,2.42670141,210.97,210.87,3.97906376]
[1756946870127,7.68,210.93,210.83,3.97906376]
[1756946870315,7.68,210.91,210.83,3.97906376]
[1756946870517,7.68,210.89,210.82,5.09823975]
[1756946870716,7.68,210.87,210.82,5.09823975]
[1756946870921,7.68,210.93,210.82,5.09823975]
[1756946871122,3.68955616,210.92,210.82,5.09823975]
[1756946871323,7.68,210.85,210.82,9.85823975]
[1756946872427,7.68,210.85,210.83,4.76]
[1756946872729,11.9468,210.86,210.83,4.76]
[1756946872929,7.68,210.85,210.83,4.76]
[1756946873125,7.68,210.85,210.82,5.09823975]
[1756946873329,7.68,210.85,210.82,5.87917599]
[1756946875832,4.2668,210.86,210.83,4.76]
[1756946876032,7.68,210.85,210.83,4.76]
[1756946876230,7.68,210.85,210.82,5.87917599]
[1756946876737,7.68,210.85,210.83,4.76]
[1756946878331,11.9468,210.86,210.83,4.76]
[1756946880342,7.68,210.86,210.83,4.76]
[1756946880533,4.2662,210.89,210.83,4.76]
[1756946880534,4.2662,210.89,210.83,2.42670141]
[1756946880939,4.2657,210.91,210.84,4.76]
[1756946881139,7.68,210.91,210.84,4.76]
[1756946881941,7.68,210.91,210.86,2.42670141]
[1756946882133,9.92,210.97,210.86,2.42670141]
[1756946882334,11.35966342,210.96,210.86,2.42670141]
[1756946882637,7.68,210.94,210.86,2.42670141]
[1756946882935,7.68,210.92,210.86,2.42670141]
[1756946883237,7.68,210.92,210.85,3.97906376]
[1756946883437,7.68,210.92,210.86,2.42670141]
[1756946883740,4.2658,210.91,210.86,7.18670141]
[1756946883938,11.9458,210.91,210.86,2.42670141]
[1756946884432,11.9458,210.91,210.87,4.76]
[1756946884827,11.9458,210.91,210.86,2.42670141]
[1756946885137,11.9458,210.91,210.87,4.76]
[1756946885337,4.2652,210.93,210.87,4.76]
[1756946885538,7.68,210.95,210.89,7.18670141]
[1756946886534,7.68,210.95,210.89,4.76]
[1756946886730,7.68,210.95,210.89,7.18670141]
[1756946886935,11.9449,210.95,210.89,7.18670141]
[1756946888441,7.68,210.93,210.89,4.76]
[1756946888637,4.2652,210.94,210.89,7.18670141]
[1756946888836,4.2652,210.94,210.89,2.42670141]
[1756946889037,7.68,210.93,210.9,4.76]
[1756946891749,4.2646,210.96,210.92,2.42670141]
[1756946891947,7.48,210.95,210.92,2.42670141]
[1756946892441,7.48,210.95,210.92,7.18670141]
[1756946893651,7.48,211.03,210.93,4.76]
[1756946893850,3.67758314,211.02,210.95,7.18670141]
[1756946894051,3.67758314,211.01,210.95,7.18670141]
[1756946894253,7.48,211.01,210.98,7.18670141]
[1756946894547,107.07229896,211.04,210.98,2.42670141]
[1756946894748,7.48,211.11,211.02,4.76]